[Event "Kupreichik Memorial Open 2018"]
[Site "Minsk"]
[Date "2018.06.21"]
[Round "1"]
[White "Nikitenko, Mihail"]
[Black "Tkachou, Viktar"]
[Result "1-0"]
[ECO "B41"]
[WhiteElo "2401"]
[BlackElo "1791"]
[Annotator "NA"]
[PlyCount "48"]
[EventDate "2018.06.21"]
[EventCountry "BLR"]
[SourceTitle "playchess.com"]
[Source "ChessBase"]
[SourceQuality "1"]
[TimeControl "900+10"]

1. e4 {[%emt 0:00:00]} c5 {[%emt 0:00:02]} 2. Nf3 {[%emt 0:00:00]} e6 {[%emt 0:00:02]} 3. d4 {[%emt 0:00:00]} cxd4 {[%emt 0:00:02]} 4. Nxd4 {[%emt 0:00:01]} a6 {[%emt 0:00:05]} 5. c4 {[%emt 0:00:03]} d6 {[%emt 0:00:05]} 6. Nc3 {[%emt 0:00:05]} Nf6 {[%emt 0:00:03]} 7. Be3 {[%emt 0:00:07]} Be7 {[%emt 0:00:03]} 8. Be2 {[%emt 0:00:01]} O-O {[%emt 0:00:40]} 9. O-O {[%emt 0:00:04]} Qc7 {[%emt 0:00:15]} 10. Rc1 {[%emt 0:00:03]} b6 {[%emt 0:00:03]} 11. f3 {[%emt 0:00:05]} Bb7 {[%emt 0:00:02]} 12. a3 {[%emt 0:00:06]} Nbd7 {[%emt 0:00:07]} 13. b4 {[%emt 0:00:02]} Rac8 {[%emt 0:00:27]} 14. Nb3 {[%emt 0:00:04]} Qb8 {[%emt 0:00:18]} 15. Qd2 {[%emt 0:00:10]} Qa8 {[%emt 0:00:28]} 16. Rfd1 {[%emt 0:00:58]} Rfe8 {[%emt 0:02:11]} 17. Bf4 {[%emt 0:01:01]} Ne5 {[%emt 0:02:07]} 18. Bxe5 {[%emt 0:00:39]} dxe5 {[%emt 0:00:01]} 19. Qe3 {[%emt 0:00:03]} a5 {[%emt 0:01:08]} 20. Na4 {[%emt 0:04:11]} axb4 {[%emt 0:02:20]} 21. Nxb6 {[%emt 0:00:02]} Qa7 {[%emt 0:00:06]} 22. axb4 {[%emt 0:00:04]} Bxb4 {[%emt 0:01:13]} 23. Ra1 {[%emt 0:01:00]} Bc5 {[%emt 0:01:05]} 24. Qxc5 {[%emt 0:01:11]} Ra8 1-0

[Event "Kupreichik Memorial Open 2018"]
[Site "Minsk"]
[Date "2018.06.21"]
[Round "1"]
[White "Zhukova, Natalia"]
[Black "Mialik, Uladzislau"]
[Result "1-0"]
[ECO "A10"]
[WhiteElo "2356"]
[BlackElo "1768"]
[Annotator "NA"]
[PlyCount "58"]
[EventDate "2018.06.21"]
[EventCountry "BLR"]
[SourceTitle "playchess.com"]
[Source "ChessBase"]
[SourceQuality "1"]
[TimeControl "900+10"]

1. c4 {[%emt 0:00:00]} g6 {[%emt 0:00:11]} 2. e4 {[%emt 0:00:00]} Bg7 {[%emt 0:00:03]} 3. d4 {[%emt 0:00:00]} d6 {[%emt 0:00:02]} 4. Nc3 {[%emt 0:00:00]} e5 {[%emt 0:00:05]} 5. Nge2 {[%emt 0:01:41]} exd4 {[%emt 0:00:09]} 6. Nxd4 {[%emt 0:00:02]} Ne7 {[%emt 0:00:01]} 7. h4 {[%emt 0:00:13]} Nbc6 {[%emt 0:01:43]} 8. Be3 {[%emt 0:00:02]} h6 {[%emt 0:03:51]} 9. Qd2 {[%emt 0:00:11]} f5 {[%emt 0:00:22]} 10. Nxc6 {[%emt 0:04:44]} Nxc6 {[%emt 0:00:37]} 11. O-O-O {[%emt 0:01:07]} fxe4 {[%emt 0:00:55]} 12. Nxe4 {[%emt 0:00:25]} Bf5 {[%emt 0:00:15]} 13. Ng3 {[%emt 0:00:09]} Qf6 {[%emt 0:01:18]} 14. Nxf5 {[%emt 0:03:23]} gxf5 {[%emt 0:00:02]} 15. g3 {[%emt 0:00:14]} O-O-O {[%emt 0:01:31]} 16. Bg2 {[%emt 0:00:10]} Rhe8 {[%emt 0:01:15]} 17. Qc2 {[%emt 0:00:32]} f4 {[%emt 0:01:51]} 18. gxf4 {[%emt 0:00:29]} Re7 {[%emt 0:00:20]} 19. Rd2 {[%emt 0:00:23]} Rde8 {[%emt 0:00:18]} 20. Qa4 {[%emt 0:00:46]} Nb8 {[%emt 0:01:56]} 21. Qxa7 {[%emt 0:00:17]} c6 {[%emt 0:00:12]} 22. Bh3+ {[%emt 0:00:26]} Nd7 {[%emt 0:00:43]} 23. Rhd1 {[%emt 0:01:54]} Qf7 {[%emt 0:00:45]} 24. Rc2 {[%emt 0:00:43]} Re6 {[%emt 0:00:33]} 25. Bxe6 {[%emt 0:00:35]} Rxe6 {[%emt 0:00:02]} 26. Qa3 {[%emt 0:00:05]} Kc7 {[%emt 0:00:11]} 27. Kb1 {[%emt 0:00:12]} h5 {[%emt 0:00:01]} 28. Rcd2 {[%emt 0:00:12]} Qf6 {[%emt 0:00:18]} 29. Qa5+ {[%emt 0:00:12]} Kc8 {[%emt 0:00:00]} 1-0

[Event "Kupreichik Memorial Open 2018"]
[Site "Minsk"]
[Date "2018.06.21"]
[Round "1"]
[White "Kalugin, Sergey G"]
[Black "Kolosovskaya, Olga"]
[Result "1-0"]
[ECO "B40"]
[WhiteElo "2334"]
[BlackElo "1747"]
[Annotator "NA"]
[PlyCount "75"]
[EventDate "2018.06.21"]
[EventCountry "BLR"]
[SourceTitle "playchess.com"]
[Source "ChessBase"]
[SourceQuality "1"]
[TimeControl "900+10"]

1. e4 {[%emt 0:00:00]} c5 {[%emt 0:00:01]} 2. Nf3 {[%emt 0:00:00]} e6 {[%emt 0:00:01]} 3. d4 {[%emt 0:00:00]} cxd4 {[%emt 0:00:01]} 4. Nxd4 {[%emt 0:00:00]} Nf6 {[%emt 0:00:02]} 5. Bd3 {[%emt 0:02:55]} Nc6 {[%emt 0:00:03]} 6. Nxc6 {[%emt 0:01:53]} bxc6 {[%emt 0:00:01]} 7. O-O {[%emt 0:00:02]} d5 {[%emt 0:00:06]} 8. Nd2 {[%emt 0:00:30]} Be7 {[%emt 0:00:03]} 9. c4 {[%emt 0:00:14]} O-O {[%emt 0:00:12]} 10. Qe2 {[%emt 0:00:09]} Bb7 {[%emt 0:00:51]} 11. b3 {[%emt 0:01:55]} a5 {[%emt 0:00:19]} 12. Bb2 {[%emt 0:00:05]} a4 {[%emt 0:00:09]} 13. Rfd1 {[%emt 0:00:37]} a3 {[%emt 0:00:36]} 14. Be5 {[%emt 0:00:06]} Nd7 {[%emt 0:00:24]} 15. Bg3 {[%emt 0:00:31]} d4 {[%emt 0:07:19]} 16. Nf3 {[%emt 0:01:03]} c5 {[%emt 0:00:04]} 17. e5 {[%emt 0:01:17]} g6 {[%emt 0:01:33]} 18. Be4 {[%emt 0:00:36]} Qb6 {[%emt 0:01:47]} 19. h4 {[%emt 0:00:22]} h5 {[%emt 0:01:56]} 20. Bf4 {[%emt 0:00:13]} Kg7 {[%emt 0:01:37]} 21. Bg5 {[%emt 0:00:22]} Bxg5 {[%emt 0:00:05]} 22. Nxg5 {[%emt 0:00:07]} Rae8 {[%emt 0:00:13]} 23. Nf3 {[%emt 0:03:12]} Nb8 {[%emt 0:00:05]} 24. Rac1 {[%emt 0:00:29]} Na6 {[%emt 0:00:58]} 25. Ng5 {[%emt 0:00:23]} Nb4 {[%emt 0:00:05]} 26. Rd2 {[%emt 0:01:20]} Bc6 {[%emt 0:00:02]} 27. Qf3 {[%emt 0:00:25]} Bxe4 {[%emt 0:00:18]} 28. Nxe4 {[%emt 0:00:02]} Qc7 {[%emt 0:00:17]} 29. Qf6+ {[%emt 0:00:07]} Kg8 {[%emt 0:00:08]} 30. Qg5 {[%emt 0:00:03]} Kg7 {[%emt 0:00:11]} 31. Nf6 {[%emt 0:00:02]} Re7 {[%emt 0:00:11]} 32. Nxh5+ {[%emt 0:00:02]} Kh7 {[%emt 0:00:03]} 33. Nf6+ {[%emt 0:00:08]} Kg7 {[%emt 0:00:01]} 34. Re1 {[%emt 0:00:17]} Nc6 {[%emt 0:00:32]} 35. Rd3 {[%emt 0:00:14]} Nb4 {[%emt 0:00:29]} 36. Rg3 {[%emt 0:00:13]} d3 {[%emt 0:00:01]} 37. h5 {[%emt 0:00:06]} d2 {[%emt 0:00:03]} 38. Qxd2 {[%emt 0:00:15]} 1-0

[Event "Kupreichik Memorial Open 2018"]
[Site "Minsk"]
[Date "2018.06.21"]
[Round "1"]
[White "Nomin-Erdene, Davaademberel"]
[Black "Shvedau, Mikhail"]
[Result "1-0"]
[ECO "B01"]
[WhiteElo "2312"]
[BlackElo "1742"]
[Annotator "NA"]
[PlyCount "97"]
[EventDate "2018.06.21"]
[EventCountry "BLR"]
[SourceTitle "playchess.com"]
[Source "ChessBase"]
[SourceQuality "1"]
[TimeControl "900+10"]

1. e4 {[%emt 0:00:00]} d5 {[%emt 0:00:01]} 2. exd5 {[%emt 0:00:00]} Qxd5 {[%emt 0:00:01]} 3. Nc3 {[%emt 0:00:00]} Qd6 {[%emt 0:00:02]} 4. d4 {[%emt 0:00:00]} Nf6 {[%emt 0:00:03]} 5. Nf3 {[%emt 0:00:02]} Bg4 {[%emt 0:00:05]} 6. Be2 {[%emt 0:01:24]} e6 {[%emt 0:00:13]} 7. h3 {[%emt 0:01:19]} Bh5 {[%emt 0:00:06]} 8. g4 {[%emt 0:00:29]} Bg6 {[%emt 0:00:09]} 9. Ne5 {[%emt 0:00:03]} Nd5 {[%emt 0:01:06]} 10. Nb5 {[%emt 0:02:09]} Qd8 {[%emt 0:01:09]} 11. Nxg6 {[%emt 0:01:47]} hxg6 {[%emt 0:01:07]} 12. c4 {[%emt 0:00:08]} Nf6 {[%emt 0:00:46]} 13. Bf4 {[%emt 0:03:01]} Bb4+ {[%emt 0:00:28]} 14. Bd2 {[%emt 0:00:01]} Bxd2+ 15. Qxd2 {[%emt 0:00:01]} c6 {[%emt 0:01:04]} 16. Nc3 {[%emt 0:00:03]} Nbd7 {[%emt 0:00:24]} 17. O-O-O {[%emt 0:00:17]} Nb6 {[%emt 0:00:27]} 18. g5 {[%emt 0:01:16]} Nh5 {[%emt 0:02:23]} 19. d5 {[%emt 0:01:39]} cxd5 {[%emt 0:00:17]} 20. cxd5 {[%emt 0:00:06]} e5 {[%emt 0:01:46]} 21. Rhe1 {[%emt 0:00:29]} O-O {[%emt 0:00:42]} 22. Qe3 {[%emt 0:01:15]} Re8 {[%emt 0:00:53]} 23. Bxh5 {[%emt 0:00:35]} gxh5 {[%emt 0:00:02]} 24. Rg1 {[%emt 0:00:04]} g6 {[%emt 0:00:25]} 25. Ne4 {[%emt 0:00:19]} Nd7 {[%emt 0:00:35]} 26. Kb1 {[%emt 0:00:12]} Qe7 {[%emt 0:00:36]} 27. Qf3 {[%emt 0:00:36]} Kg7 {[%emt 0:00:36]} 28. Rc1 {[%emt 0:00:01]} Rac8 {[%emt 0:00:17]} 29. h4 {[%emt 0:00:19]} b6 {[%emt 0:00:27]} 30. Rc3 {[%emt 0:00:23]} Rxc3 {[%emt 0:00:07]} 31. Qxc3 {[%emt 0:00:01]} Nc5 {[%emt 0:00:19]} 32. Nf6 {[%emt 0:00:03]} Rc8 {[%emt 0:00:07]} 33. f4 {[%emt 0:00:28]} Qb7 {[%emt 0:01:45]} 34. Qxe5 {[%emt 0:00:08]} Kf8 {[%emt 0:00:24]} 35. Re1 {[%emt 0:00:24]} Nd3 {[%emt 0:00:21]} 36. Qe8+ {[%emt 0:00:04]} Kg7 {[%emt 0:00:11]} 37. Qe2 {[%emt 0:00:59]} Nxe1 {[%emt 0:00:15]} 38. Qxe1 {[%emt 0:00:02]} Qc7 {[%emt 0:00:49]} 39. Qd2 {[%emt 0:00:12]} Qc4 {[%emt 0:00:27]} 40. b3 {[%emt 0:00:36]} Qf1+ {[%emt 0:00:18]} 41. Kb2 {[%emt 0:00:01]} Qf3 {[%emt 0:00:14]} 42. d6 {[%emt 0:00:14]} Rd8 {[%emt 0:00:25]} 43. d7 {[%emt 0:00:01]} Qc6 {[%emt 0:00:12]} 44. Qd4 {[%emt 0:00:10]} Qg2+ {[%emt 0:00:05]} 45. Ka3 {[%emt 0:00:03]} Kf8 {[%emt 0:00:13]} 46. Qd6+ {[%emt 0:00:21]} Kg7 {[%emt 0:00:02]} 47. Ne8+ {[%emt 0:00:14]} Kg8 {[%emt 0:00:01]} 48. Qe7 {[%emt 0:00:03]} Qd5 {[%emt 0:00:26]} 49. Nf6+ {[%emt 0:00:03]} 1-0

[Event "Kupreichik Memorial Open 2018"]
[Site "Minsk"]
[Date "2018.06.21"]
[Round "1"]
[White "Terletsky, Oleg"]
[Black "Bezenson, Anton"]
[Result "1-0"]
[ECO "C09"]
[WhiteElo "2268"]
[BlackElo "1732"]
[Annotator "NA"]
[PlyCount "119"]
[EventDate "2018.06.21"]
[EventCountry "BLR"]
[SourceTitle "playchess.com"]
[Source "ChessBase"]
[SourceQuality "1"]
[TimeControl "900+10"]

1. e4 {[%emt 0:00:00]} e6 {[%emt 0:00:03]} 2. d4 {[%emt 0:00:00]} d5 {[%emt 0:00:01]} 3. Nd2 {[%emt 0:00:00]} c5 {[%emt 0:00:02]} 4. Ngf3 {[%emt 0:00:00]} Nc6 {[%emt 0:00:06]} 5. exd5 {[%emt 0:00:00]} exd5 {[%emt 0:00:02]} 6. Bb5 {[%emt 0:00:01]} Nf6 {[%emt 0:00:15]} 7. O-O {[%emt 0:00:04]} Be7 {[%emt 0:00:25]} 8. dxc5 {[%emt 0:00:03]} Bxc5 {[%emt 0:00:02]} 9. Nb3 {[%emt 0:00:02]} Be7 {[%emt 0:00:09]} 10. Ne5 {[%emt 0:00:12]} Bd7 {[%emt 0:00:16]} 11. Nxd7 {[%emt 0:00:11]} Qxd7 {[%emt 0:00:05]} 12. Nd4 {[%emt 0:00:49]} O-O {[%emt 0:00:33]} 13. Bg5 {[%emt 0:00:42]} a6 {[%emt 0:00:04]} 14. Bxc6 {[%emt 0:00:18]} bxc6 {[%emt 0:00:04]} 15. Qf3 {[%emt 0:00:02]} Ne4 {[%emt 0:01:41]} 16. Bxe7 {[%emt 0:00:07]} Qxe7 {[%emt 0:00:02]} 17. Rad1 {[%emt 0:00:03]} Rfe8 {[%emt 0:00:38]} 18. Nxc6 {[%emt 0:00:30]} Qc5 {[%emt 0:00:09]} 19. Nd4 {[%emt 0:00:10]} Rab8 {[%emt 0:00:41]} 20. b3 {[%emt 0:01:37]} Nc3 {[%emt 0:00:40]} 21. Rd3 {[%emt 0:00:40]} Nxa2 {[%emt 0:00:26]} 22. Nf5 {[%emt 0:01:33]} Nb4 {[%emt 0:00:12]} 23. Qg4 {[%emt 0:03:03]} Qf8 {[%emt 0:00:03]} 24. Rf3 {[%emt 0:02:38]} Rb7 {[%emt 0:00:01]} 25. Nh6+ {[%emt 0:02:13]} Kh8 {[%emt 0:00:02]} 26. Nxf7+ {[%emt 0:00:06]} Rxf7 {[%emt 0:00:25]} 27. Rxf7 {[%emt 0:00:02]} Qxf7 {[%emt 0:00:11]} 28. Qxb4 {[%emt 0:00:02]} h6 {[%emt 0:00:13]} 29. Re1 {[%emt 0:00:13]} Rc8 {[%emt 0:01:40]} 30. Qd2 {[%emt 0:00:10]} Qf5 {[%emt 0:00:43]} 31. Re2 {[%emt 0:00:41]} Kh7 {[%emt 0:02:43]} 32. h3 {[%emt 0:00:02]} Rc6 {[%emt 0:00:16]} 33. Kh2 {[%emt 0:00:54]} Rc8 {[%emt 0:00:31]} 34. c3 {[%emt 0:00:17]} Rb8 {[%emt 0:00:16]} 35. b4 {[%emt 0:00:05]} Rc8 {[%emt 0:00:32]} 36. Re3 {[%emt 0:01:05]} Rf8 {[%emt 0:03:56]} 37. Qd3 {[%emt 0:00:02]} Qxd3 {[%emt 0:00:48]} 38. Rxd3 {[%emt 0:00:01]} Rf5 {[%emt 0:00:01]} 39. Kg3 {[%emt 0:00:38]} Kg8 {[%emt 0:00:10]} 40. h4 {[%emt 0:00:26]} h5 {[%emt 0:00:50]} 41. Rd4 {[%emt 0:00:10]} g5 {[%emt 0:01:07]} 42. f3 {[%emt 0:00:40]} Kf7 {[%emt 0:00:07]} 43. hxg5 {[%emt 0:00:16]} Rxg5+ {[%emt 0:00:02]} 44. Kf4 {[%emt 0:00:16]} Kf6 {[%emt 0:00:30]} 45. g4 {[%emt 0:00:02]} Re5 {[%emt 0:00:31]} 46. gxh5 {[%emt 0:00:34]} Rxh5 {[%emt 0:00:02]} 47. Rd2 {[%emt 0:00:07]} Re5 {[%emt 0:00:08]} 48. Rh2 {[%emt 0:00:15]} Rf5+ {[%emt 0:00:02]} 49. Ke3 {[%emt 0:00:03]} Kg5 {[%emt 0:00:24]} 50. Rg2+ {[%emt 0:00:18]} Kf6 {[%emt 0:00:02]} 51. f4 {[%emt 0:00:11]} Rh5 {[%emt 0:00:06]} 52. Kd4 {[%emt 0:00:11]} Rf5 {[%emt 0:00:21]} 53. Rg4 {[%emt 0:00:08]} Rh5 {[%emt 0:00:08]} 54. Rg8 {[%emt 0:00:37]} Rh4 {[%emt 0:00:27]} 55. Kxd5 {[%emt 0:00:07]} Rh3 {[%emt 0:00:03]} 56. c4 {[%emt 0:00:05]} Rb3 {[%emt 0:00:05]} 57. Kc5 {[%emt 0:00:03]} Kf5 {[%emt 0:00:04]} 58. Rf8+ {[%emt 0:00:02]} Ke6 {[%emt 0:00:16]} 59. f5+ {[%emt 0:00:17]} Ke7 {[%emt 0:00:02]} 60. Ra8 {[%emt 0:00:02]} 1-0

[Event "Kupreichik Memorial Open 2018"]
[Site "Minsk"]
[Date "2018.06.21"]
[Round "1"]
[White "Ten, Alexander"]
[Black "Beliuga, Mikhail"]
[Result "1/2-1/2"]
[ECO "B18"]
[WhiteElo "2265"]
[BlackElo "1699"]
[Annotator "NA"]
[PlyCount "70"]
[EventDate "2018.06.21"]
[EventCountry "BLR"]
[SourceTitle "playchess.com"]
[Source "ChessBase"]
[SourceQuality "1"]
[TimeControl "900+10"]

1. e4 {[%emt 0:00:00]} c6 {[%emt 0:00:01]} 2. d4 {[%emt 0:00:00]} d5 {[%emt 0:00:01]} 3. Nc3 {[%emt 0:00:01]} dxe4 {[%emt 0:00:01]} 4. Nxe4 {[%emt 0:00:01]} Bf5 {[%emt 0:00:01]} 5. Ng3 {[%emt 0:00:02]} Bg6 {[%emt 0:00:01]} 6. Nf3 {[%emt 0:00:02]} Nd7 {[%emt 0:00:01]} 7. Bd3 {[%emt 0:00:02]} Bxd3 {[%emt 0:00:05]} 8. Qxd3 {[%emt 0:00:01]} e6 {[%emt 0:00:18]} 9. Bf4 {[%emt 0:00:17]} Qa5+ {[%emt 0:00:05]} 10. c3 {[%emt 0:00:07]} Ngf6 {[%emt 0:00:08]} 11. O-O {[%emt 0:00:06]} Be7 {[%emt 0:00:26]} 12. Rfe1 {[%emt 0:00:10]} O-O {[%emt 0:00:08]} 13. Nf5 {[%emt 0:00:42]} Rfe8 {[%emt 0:01:28]} 14. Nxe7+ {[%emt 0:00:10]} Rxe7 {[%emt 0:00:01]} 15. c4 {[%emt 0:01:32]} Rd8 {[%emt 0:05:53]} 16. Qc2 {[%emt 0:00:53]} Nf8 {[%emt 0:02:34]} 17. Bg5 {[%emt 0:03:38]} Qc7 {[%emt 0:03:31]} 18. Rad1 {[%emt 0:02:08]} Red7 {[%emt 0:00:43]} 19. Bxf6 {[%emt 0:00:49]} gxf6 {[%emt 0:00:01]} 20. Qe4 {[%emt 0:00:03]} Ng6 {[%emt 0:00:35]} 21. g3 {[%emt 0:00:10]} e5 {[%emt 0:00:47]} 22. d5 {[%emt 0:00:29]} cxd5 {[%emt 0:00:04]} 23. Rxd5 {[%emt 0:00:10]} Rxd5 {[%emt 0:00:10]} 24. cxd5 {[%emt 0:00:01]} Qd7 {[%emt 0:00:46]} 25. Rd1 {[%emt 0:00:06]} f5 {[%emt 0:00:20]} 26. Qe3 {[%emt 0:02:34]} e4 {[%emt 0:00:11]} 27. Nh4 {[%emt 0:00:27]} Qa4 {[%emt 0:00:39]} 28. b3 {[%emt 0:00:10]} Qxa2 {[%emt 0:00:10]} 29. Nxf5 {[%emt 0:00:03]} Qc2 {[%emt 0:00:08]} 30. Qd4 {[%emt 0:00:14]} Kf8 {[%emt 0:00:23]} 31. d6 {[%emt 0:00:37]} Ne5 {[%emt 0:00:20]} 32. Kg2 {[%emt 0:00:40]} Qxb3 {[%emt 0:00:16]} 33. Qxe5 {[%emt 0:00:12]} Qf3+ {[%emt 0:00:03]} 34. Kh3 {[%emt 0:00:02]} Qh5+ {[%emt 0:00:15]} 35. Kg2 {[%emt 0:00:47]} Qf3+ {[%emt 0:00:02]} 1/2-1/2

[Event "Kupreichik Memorial Open 2018"]
[Site "Minsk"]
[Date "2018.06.21"]
[Round "1"]
[White "Rakhmangulova, Anastasiya"]
[Black "Yurau, Maksim"]
[Result "1-0"]
[ECO "B83"]
[WhiteElo "2244"]
[BlackElo "1694"]
[Annotator "NA"]
[PlyCount "63"]
[EventDate "2018.06.21"]
[EventCountry "BLR"]
[SourceTitle "playchess.com"]
[Source "ChessBase"]
[SourceQuality "1"]
[TimeControl "900+10"]

1. e4 {[%emt 0:00:00]} c5 {[%emt 0:00:01]} 2. Nf3 {[%emt 0:00:00]} e6 {[%emt 0:00:01]} 3. d4 {[%emt 0:00:00]} cxd4 {[%emt 0:00:01]} 4. Nxd4 {[%emt 0:00:00]} Nf6 {[%emt 0:00:02]} 5. Nc3 {[%emt 0:00:00]} d6 {[%emt 0:00:01]} 6. Be2 {[%emt 0:01:56]} Be7 {[%emt 0:00:02]} 7. O-O {[%emt 0:00:07]} O-O {[%emt 0:00:03]} 8. Be3 {[%emt 0:00:09]} a6 {[%emt 0:00:02]} 9. f4 {[%emt 0:00:15]} Qc7 {[%emt 0:00:01]} 10. Bf3 {[%emt 0:00:15]} Nc6 {[%emt 0:00:03]} 11. Qe1 {[%emt 0:00:45]} Nxd4 {[%emt 0:00:43]} 12. Bxd4 {[%emt 0:00:01]} e5 {[%emt 0:00:03]} 13. Be3 {[%emt 0:00:10]} b5 {[%emt 0:00:02]} 14. a3 {[%emt 0:03:04]} Bb7 {[%emt 0:00:30]} 15. f5 {[%emt 0:00:04]} Rac8 {[%emt 0:01:12]} 16. Rd1 {[%emt 0:01:20]} Qc4 {[%emt 0:04:37]} 17. Bg5 {[%emt 0:00:12]} Rfd8 {[%emt 0:00:12]} 18. Rd3 {[%emt 0:01:03]} Rd7 {[%emt 0:06:50]} 19. g4 {[%emt 0:01:13]} a5 {[%emt 0:01:25]} 20. b3 {[%emt 0:02:37]} Qc6 {[%emt 0:00:26]} 21. Rf2 {[%emt 0:02:13]} b4 {[%emt 0:01:37]} 22. axb4 {[%emt 0:00:02]} axb4 {[%emt 0:00:02]} 23. Nd5 {[%emt 0:00:11]} Nxd5 {[%emt 0:00:08]} 24. exd5 {[%emt 0:00:01]} Qb6 {[%emt 0:00:14]} 25. Be3 {[%emt 0:01:11]} Qa5 {[%emt 0:00:18]} 26. g5 {[%emt 0:00:16]} Rdc7 {[%emt 0:00:30]} 27. Rdd2 {[%emt 0:01:11]} Qa2 {[%emt 0:00:16]} 28. Be4 {[%emt 0:00:02]} Rc3 {[%emt 0:00:11]} 29. f6 {[%emt 0:00:16]} Bf8 {[%emt 0:00:01]} 30. fxg7 {[%emt 0:00:41]} Bxg7 {[%emt 0:00:02]} 31. Rfe2 {[%emt 0:00:01]} Rf8 {[%emt 0:00:31]} 32. Qh4 {[%emt 0:00:06]} 1-0

[Event "Kupreichik Memorial Open 2018"]
[Site "Minsk"]
[Date "2018.06.21"]
[Round "1"]
[White "Cherepov, Alexej"]
[Black "Selitski, Aleksandr"]
[Result "1-0"]
[ECO "D15"]
[WhiteElo "2234"]
[BlackElo "1678"]
[Annotator "NA"]
[PlyCount "61"]
[EventDate "2018.06.21"]
[EventCountry "BLR"]
[SourceTitle "playchess.com"]
[Source "ChessBase"]
[SourceQuality "1"]
[TimeControl "900+10"]

1. d4 {[%emt 0:00:00]} d5 {[%emt 0:00:02]} 2. c4 {[%emt 0:00:01]} c6 {[%emt 0:00:07]} 3. Nc3 {[%emt 0:00:03]} Nf6 {[%emt 0:00:06]} 4. Nf3 {[%emt 0:00:17]} a6 {[%emt 0:00:07]} 5. a4 {[%emt 0:00:06]} Bf5 {[%emt 0:00:39]} 6. Qb3 {[%emt 0:01:40]} Ra7 {[%emt 0:01:30]} 7. a5 {[%emt 0:00:52]} e6 {[%emt 0:01:04]} 8. e3 {[%emt 0:00:33]} Nbd7 {[%emt 0:00:22]} 9. Be2 {[%emt 0:00:17]} Bd6 {[%emt 0:01:21]} 10. O-O {[%emt 0:00:05]} O-O {[%emt 0:00:22]} 11. Nh4 {[%emt 0:01:19]} Ng4 {[%emt 0:01:31]} 12. g3 {[%emt 0:00:54]} Nxh2 {[%emt 0:03:30]} 13. Nxf5 {[%emt 0:00:08]} Nxf1 {[%emt 0:00:36]} 14. Nxd6 {[%emt 0:00:05]} Nxg3 {[%emt 0:00:24]} 15. fxg3 {[%emt 0:00:03]} dxc4 {[%emt 0:00:50]} 16. Nxc4 {[%emt 0:00:21]} Qg5 {[%emt 0:01:14]} 17. Kg2 {[%emt 0:00:42]} e5 {[%emt 0:00:46]} 18. Bd2 {[%emt 0:00:35]} exd4 {[%emt 0:00:35]} 19. exd4 {[%emt 0:00:02]} Qf6 {[%emt 0:00:05]} 20. Be3 {[%emt 0:00:28]} Re8 {[%emt 0:00:11]} 21. Rf1 {[%emt 0:00:08]} Qe7 {[%emt 0:00:13]} 22. Bf4 {[%emt 0:01:01]} Nf6 {[%emt 0:00:18]} 23. Bg5 {[%emt 0:00:56]} Qe6 {[%emt 0:00:57]} 24. Bxf6 {[%emt 0:00:17]} gxf6 {[%emt 0:00:03]} 25. Bd3 {[%emt 0:00:06]} b5 {[%emt 0:01:09]} 26. axb6 {[%emt 0:00:06]} Rb7 {[%emt 0:00:03]} 27. Ne4 {[%emt 0:00:34]} f5 {[%emt 0:00:28]} 28. Ned6 {[%emt 0:00:09]} Qd5+ {[%emt 0:00:11]} 29. Rf3 {[%emt 0:00:05]} Re3 {[%emt 0:00:29]} 30. Qd1 {[%emt 0:01:05]} Rb8 31. Nxe3 1-0

[Event "Kupreichik Memorial Open 2018"]
[Site "Minsk"]
[Date "2018.06.21"]
[Round "1"]
[White "Osmolny, Vladimir I"]
[Black "Sukalina, Alina"]
[Result "1-0"]
[ECO "A13"]
[WhiteElo "2163"]
[BlackElo "1673"]
[Annotator "NA"]
[PlyCount "113"]
[EventDate "2018.06.21"]
[EventCountry "BLR"]
[SourceTitle "playchess.com"]
[Source "ChessBase"]
[SourceQuality "1"]
[TimeControl "900+10"]

1. c4 {[%emt 0:00:00]} e6 {[%emt 0:00:16]} 2. Nf3 {[%emt 0:00:00]} Nf6 {[%emt 0:00:15]} 3. g3 {[%emt 0:00:03]} d5 {[%emt 0:00:05]} 4. Bg2 {[%emt 0:00:04]} c6 {[%emt 0:00:16]} 5. O-O {[%emt 0:00:09]} Be7 {[%emt 0:00:55]} 6. b3 {[%emt 0:00:17]} Nbd7 {[%emt 0:02:12]} 7. Bb2 {[%emt 0:00:07]} O-O {[%emt 0:00:11]} 8. d3 {[%emt 0:01:15]} Qc7 {[%emt 0:01:43]} 9. Nbd2 {[%emt 0:00:40]} b6 {[%emt 0:01:19]} 10. Rc1 {[%emt 0:00:20]} Bb7 {[%emt 0:00:27]} 11. cxd5 {[%emt 0:00:46]} exd5 {[%emt 0:00:17]} 12. a3 {[%emt 0:01:45]} Rac8 {[%emt 0:05:15]} 13. b4 {[%emt 0:01:05]} Qb8 {[%emt 0:00:23]} 14. d4 {[%emt 0:01:39]} Rfe8 {[%emt 0:00:58]} 15. h3 {[%emt 0:01:09]} Bd6 {[%emt 0:01:08]} 16. Nh2 {[%emt 0:02:35]} Nf8 {[%emt 0:01:48]} 17. Ng4 {[%emt 0:00:45]} Nxg4 {[%emt 0:00:10]} 18. hxg4 {[%emt 0:00:04]} Ng6 {[%emt 0:00:17]} 19. Rc3 {[%emt 0:00:29]} Ba6 {[%emt 0:00:10]} 20. Re1 {[%emt 0:00:23]} Rc7 {[%emt 0:00:10]} 21. Nf1 {[%emt 0:01:13]} Bb5 {[%emt 0:00:11]} 22. Ne3 {[%emt 0:00:30]} Rce7 {[%emt 0:00:04]} 23. Bc1 {[%emt 0:00:40]} a5 {[%emt 0:00:05]} 24. Qb3 {[%emt 0:01:14]} axb4 {[%emt 0:00:03]} 25. axb4 {[%emt 0:00:01]} Nf8 {[%emt 0:00:25]} 26. Bf3 {[%emt 0:00:15]} g6 {[%emt 0:00:13]} 27. Qc2 {[%emt 0:00:14]} Ne6 {[%emt 0:00:08]} 28. Rd1 {[%emt 0:00:08]} Ng5 {[%emt 0:00:11]} 29. Qb3 {[%emt 0:00:30]} Ne4 {[%emt 0:00:10]} 30. Bxe4 {[%emt 0:00:07]} Rxe4 {[%emt 0:00:01]} 31. Kg2 {[%emt 0:00:05]} Bxe2 {[%emt 0:00:17]} 32. Rh1 {[%emt 0:00:13]} Bb5 {[%emt 0:00:05]} 33. Qb2 {[%emt 0:00:05]} Kg7 {[%emt 0:00:07]} 34. Qd2 {[%emt 0:00:02]} h5 {[%emt 0:00:22]} 35. gxh5 {[%emt 0:00:02]} Rh8 {[%emt 0:00:03]} 36. h6+ {[%emt 0:00:16]} Kf8 {[%emt 0:00:08]} 37. Rb3 {[%emt 0:00:09]} Ba4 {[%emt 0:00:10]} 38. Rb1 {[%emt 0:00:04]} Qe8 {[%emt 0:00:19]} 39. Ra1 {[%emt 0:00:08]} b5 {[%emt 0:00:03]} 40. Rh3 {[%emt 0:00:12]} Rh7 {[%emt 0:00:05]} 41. Ra3 {[%emt 0:00:06]} Qe7 {[%emt 0:00:16]} 42. Ra2 {[%emt 0:00:25]} Bxb4 {[%emt 0:00:13]} 43. Qd3 {[%emt 0:00:10]} Bd6 {[%emt 0:00:11]} 44. Bd2 {[%emt 0:00:07]} f5 {[%emt 0:00:10]} 45. Qc3 {[%emt 0:00:28]} Qe8 {[%emt 0:00:12]} 46. Ra1 {[%emt 0:00:05]} Kg8 {[%emt 0:00:05]} 47. Rc1 {[%emt 0:00:01]} Rc7 {[%emt 0:00:02]} 48. h7+ {[%emt 0:00:03]} Kh8 {[%emt 0:00:01]} 49. Nf1 {[%emt 0:00:04]} b4 {[%emt 0:00:30]} 50. Qb2 {[%emt 0:00:06]} Bb5 {[%emt 0:00:12]} 51. Bg5 {[%emt 0:00:06]} Re1 {[%emt 0:00:05]} 52. Bf6+ {[%emt 0:00:01]} Rg7 {[%emt 0:00:03]} 53. Rxe1 {[%emt 0:00:06]} Qxe1 {[%emt 0:00:03]} 54. Bxg7+ {[%emt 0:00:02]} Kxg7 {[%emt 0:00:01]} 55. h8=Q+ {[%emt 0:00:01]} Kf7 {[%emt 0:00:01]} 56. Rh7+ {[%emt 0:00:03]} Ke6 {[%emt 0:00:01]} 57. Qe8+ {[%emt 0:00:03]} 1-0